[Event "2nd Serbian League-Vojvodina 2023"]
[Site "Novi Sad"]
[Date "2023.11.08"]
[Round "10.11"]
[White "Djurnic, Strahinja"]
[Black "Levitan, Judah Nathan"]
[Result "0-1"]
[ECO "B52"]
[WhiteElo "2097"]
[BlackElo "1937"]
[Annotator "RC"]
[PlyCount "102"]
[EventDate "2023.10.22"]
[EventType "team-tourn"]
[EventCountry "SRB"]
[SourceTitle "playchess.com"]
[Source "ChessBase"]
[SourceQuality "1"]
[TimeControl "40/5400+30:1800+30"]

1. e4 {[%emt 0:07:16]} c5 {[%emt 0:01:01]} 2. Nf3 {[%emt 0:00:05]} d6 {[%emt 0:00:02]} 3. Bb5+ {[%emt 0:00:07]} Bd7 {[%emt 0:00:09]} 4. Bxd7+ {[%emt 0:00:06]} Nxd7 {[%emt 0:00:03]} 5. d4 {[%emt 0:00:21]} cxd4 {[%emt 0:00:10]} 6. Qxd4 {[%emt 0:00:07]} Ngf6 {[%emt 0:01:05]} 7. Nc3 {[%emt 0:04:05]} g6 {[%emt 0:01:09]} 8. e5 {[%emt 0:10:36]} dxe5 {[%emt 0:02:06]} 9. Nxe5 {[%emt 0:00:25]} Bg7 {[%emt 0:01:25]} 10. Nxd7 {[%emt 0:02:02]} Qxd7 {[%emt 0:00:08]} 11. Be3 {[%emt 0:13:26]} Qc6 {[%emt 0:04:46]} 12. O-O {[%emt 0:08:52]} O-O {[%emt 0:00:37]} 13. Rfd1 {[%emt 0:02:08]} b5 {[%emt 0:05:08]} 14. Qb4 {[%emt 0:13:03]} Rab8 {[%emt 0:17:04]} 15. Bxa7 {[%emt 0:03:36]} Rb7 {[%emt 0:00:07]} 16. Bd4 {[%emt 0:09:09]} Rc8 {[%emt 0:00:40]} 17. Rd2 {[%emt 0:01:26]} Bf8 {[%emt 0:05:27]} 18. Bxf6 {[%emt 0:06:17]} Qxf6 {[%emt 0:02:14]} 19. Qe4 {[%emt 0:00:27]} Rbc7 {[%emt 0:04:04]} 20. Rad1 {[%emt 0:02:40]} Rc5 {[%emt 0:04:14]} 21. Nd5 {[%emt 0:06:47]} Qxb2 {[%emt 0:04:03]} 22. Nxe7+ {[%emt 0:00:25]} Bxe7 {[%emt 0:00:18]} 23. Qxe7 {[%emt 0:00:02]} Kg7 {[%emt 0:00:29]} 24. c4 {[%emt 0:01:42]} Qc3 {[%emt 0:01:10]} 25. g3 {[%emt 0:02:40]} Re5 {[%emt 0:04:56]} 26. Qd7 {[%emt 0:02:57]} Rxc4 {[%emt 0:00:39]} 27. Qd3 {[%emt 0:03:13]} Qxd3 {[%emt 0:01:47]} 28. Rxd3 {[%emt 0:00:00]} Re2 {[%emt 0:00:12]} 29. Rb3 {[%emt 0:00:00]} Rcc2 {[%emt 0:00:38]} 30. Rf1 {[%emt 0:00:00]} Rb2 {[%emt 0:00:10]} 31. Rb1 {[%emt 0:00:00]} Rxa2 {[%emt 0:00:11]} 32. Rf3 {[%emt 0:00:00]} Rab2 {[%emt 0:00:15]} 33. Ra1 {[%emt 0:00:00]} Re7 {[%emt 0:00:34]} 34. Raa3 {[%emt 0:00:00]} b4 {[%emt 0:02:00]} 35. Rab3 {[%emt 0:00:28]} Rxb3 {[%emt 0:00:19]} 36. Rxb3 {[%emt 0:00:02]} Rb7 {[%emt 0:00:02]} 37. Kf1 {[%emt 0:00:06]} Kf6 {[%emt 0:00:09]} 38. Ke2 {[%emt 0:00:03]} Ke5 {[%emt 0:00:08]} 39. Kd3 {[%emt 0:00:02]} Kd5 {[%emt 0:00:07]} 40. Kc2 {[%emt 0:05:49]} Kc4 {[%emt 0:00:41]} 41. Re3 {[%emt 0:24:37]} f5 {[%emt 0:30:27]} 42. Re8 {[%emt 0:01:40]} Rd7 {[%emt 0:02:55]} 43. Rc8+ {[%emt 0:00:36]} Kb5 {[%emt 0:38:11]} 44. Rb8+ {[%emt 0:00:11]} Kc4 {[%emt 0:00:00]} 45. Rc8+ {[%emt 0:00:04]} Kd4 {[%emt 0:01:00]} 46. Rb8 {[%emt 0:00:38]} Ke4 {[%emt 0:00:00]} 47. Rxb4+ {[%emt 0:05:44]} Kf3 {[%emt 0:00:00]} 48. Rf4+ {[%emt 0:00:00]} Kg2 {[%emt 0:00:00]} 49. h4 {[%emt 0:00:00]} h5 {[%emt 0:00:00]} 50. Kc1 {[%emt 0:00:00]} Rd3 {[%emt 0:00:00]} 51. g4 {[%emt 0:00:00]} Rf3 {[%emt 0:00:00]} 0-1

[Event "2nd Serbian League-Vojvodina 2023"]
[Site "Novi Sad"]
[Date "2023.11.08"]
[Round "10.12"]
[White "Vranic, Ljubomir"]
[Black "Cica, Dragan"]
[Result "0-1"]
[ECO "A80"]
[WhiteElo "2090"]
[BlackElo "2125"]
[Annotator "RC"]
[PlyCount "76"]
[EventDate "2023.10.22"]
[EventType "team-tourn"]
[EventCountry "SRB"]
[SourceTitle "playchess.com"]
[Source "ChessBase"]
[SourceQuality "1"]
[TimeControl "40/5400+30:1800+30"]

1. d4 {[%emt 1:31:00]} f5 {[%emt 0:00:12]} 2. Nc3 {[%emt 0:00:00]} Nf6 {[%emt 0:00:19]} 3. Bg5 {[%emt 0:00:00]} d5 {[%emt 0:00:10]} 4. Bxf6 {[%emt 0:00:00]} exf6 {[%emt 0:00:03]} 5. e3 {[%emt 0:00:00]} Bb4 {[%emt 0:03:42]} 6. Nge2 {[%emt 0:00:00]} Nc6 {[%emt 0:05:01]} 7. a3 {[%emt 0:00:00]} Bxc3+ {[%emt 1:24:33]} 8. Nxc3 {[%emt 0:00:00]} Ne7 {[%emt 0:00:00]} 9. Bd3 {[%emt 0:00:00]} O-O {[%emt 0:01:00]} 10. Qf3 {[%emt 0:04:30]} Be6 {[%emt 0:00:00]} 11. Ne2 {[%emt 0:00:00]} Qd7 {[%emt 0:00:00]} 12. O-O-O {[%emt 0:00:00]} a5 {[%emt 0:01:30]} 13. h3 {[%emt 0:01:30]} b5 {[%emt 0:00:00]} 14. b3 {[%emt 0:00:00]} Rfc8 {[%emt 0:00:00]} 15. Kb2 {[%emt 0:00:00]} Rab8 {[%emt 0:00:00]} 16. b4 {[%emt 0:00:00]} axb4 {[%emt 0:00:00]} 17. axb4 {[%emt 0:00:00]} Qd6 {[%emt 0:00:00]} 18. c3 {[%emt 0:00:00]} Nc6 {[%emt 0:00:00]} 19. Kb3 {[%emt 0:00:00]} Na5+ {[%emt 0:00:00]} 20. Kc2 {[%emt 0:00:00]} Nc4 {[%emt 0:00:00]} 21. Ra1 {[%emt 0:00:00]} Ra8 {[%emt 0:00:00]} 22. Bxc4 {[%emt 0:00:00]} bxc4 {[%emt 0:00:00]} 23. Ng3 {[%emt 0:00:00]} g6 {[%emt 0:00:00]} 24. Rhc1 {[%emt 0:02:18]} Qc6 {[%emt 0:00:00]} 25. Kd2 {[%emt 0:00:39]} Ra6 {[%emt 0:00:00]} 26. Ke1 {[%emt 0:01:18]} Rca8 {[%emt 0:00:00]} 27. Qd1 {[%emt 0:00:26]} R8a7 {[%emt 0:00:00]} 28. Rxa6 {[%emt 0:01:29]} Qxa6 {[%emt 0:00:00]} 29. Ne2 {[%emt 0:00:25]} Bd7 {[%emt 0:00:00]} 30. Rb1 {[%emt 0:00:52]} f4 {[%emt 0:00:00]} 31. Nxf4 {[%emt 0:00:46]} Bf5 {[%emt 0:00:00]} 32. Rc1 {[%emt 0:00:34]} g5 {[%emt 0:00:00]} 33. Qh5 {[%emt 0:00:37]} Kg7 {[%emt 0:00:00]} 34. Nxd5 {[%emt 0:00:31]} Qe6 {[%emt 0:00:00]} 35. Nxf6 {[%emt 0:00:32]} Qxf6 {[%emt 0:00:00]} 36. Qe8 {[%emt 0:00:30]} Ra2 {[%emt 0:00:00]} 37. Qe5 {[%emt 0:00:32]} Qxe5 {[%emt 0:00:00]} 38. dxe5 {[%emt 0:00:01]} Bd3 {[%emt 0:00:00]} 0-1

[Event "2nd Serbian League-Vojvodina 2023"]
[Site "Novi Sad"]
[Date "2023.11.08"]
[Round "10.13"]
[White "Skvortsov, Andrei"]
[Black "Bokros, Albert"]
[Result "0-1"]
[ECO "B21"]
[WhiteElo "2294"]
[BlackElo "2447"]
[Annotator "RC"]
[PlyCount "54"]
[EventDate "2023.10.22"]
[EventType "team-tourn"]
[EventCountry "SRB"]
[SourceTitle "playchess.com"]
[Source "ChessBase"]
[SourceQuality "1"]
[TimeControl "40/5400+30:1800+30"]

1. e4 {[%emt 1:31:00]} c5 {[%emt 1:31:00]} 2. d4 {[%emt 0:00:30]} cxd4 {[%emt 0:00:30]} 3. Qxd4 {[%emt 0:00:30]} Nc6 {[%emt 0:00:30]} 4. Qd3 {[%emt 0:00:30]} Nf6 {[%emt 0:00:30]} 5. Nc3 {[%emt 0:00:30]} g6 {[%emt 0:00:30]} 6. Nf3 {[%emt 0:00:30]} Bg7 {[%emt 0:00:30]} 7. Be2 {[%emt 0:00:30]} O-O {[%emt 0:00:30]} 8. Nd5 {[%emt 0:00:30]} d6 {[%emt 0:00:30]} 9. c3 {[%emt 0:00:30]} Nd7 {[%emt 0:00:30]} 10. O-O {[%emt 0:00:30]} b6 {[%emt 0:00:30]} 11. Bg5 {[%emt 0:00:30]} h6 {[%emt 0:00:30]} 12. Bh4 {[%emt 0:00:30]} Bb7 {[%emt 0:00:30]} 13. b4 {[%emt 0:00:30]} g5 {[%emt 0:00:30]} 14. Bg3 {[%emt 0:00:30]} Rc8 {[%emt 0:00:30]} 15. Rac1 {[%emt 0:00:30]} Nce5 {[%emt 0:00:30]} 16. Nxe5 {[%emt 0:00:30]} Nxe5 {[%emt 0:00:30]} 17. Qb1 {[%emt 0:00:30]} f5 {[%emt 0:00:30]} 18. f4 {[%emt 0:00:30]} e6 {[%emt 0:00:30]} 19. fxe5 {[%emt 0:00:30]} exd5 {[%emt 0:00:30]} 20. exf5 {[%emt 0:00:30]} dxe5 {[%emt 0:00:30]} 21. f6 {[%emt 0:00:30]} Rxf6 {[%emt 0:00:30]} 22. Bxe5 {[%emt 0:00:30]} Rxf1+ {[%emt 0:00:30]} 23. Rxf1 {[%emt 0:00:30]} Qe8 {[%emt 0:00:30]} 24. Bxg7 {[%emt 0:00:30]} Kxg7 {[%emt 0:00:30]} 25. Bg4 {[%emt 0:00:30]} Qe3+ 26. Kh1 {[%emt 0:00:30]} Rf8 {[%emt 0:01:00]} 27. Re1 {[%emt 0:00:30]} Qxc3 {[%emt 0:00:30]} 0-1

[Event "2nd Serbian League-Vojvodina 2023"]
[Site "Novi Sad"]
[Date "2023.11.08"]
[Round "10.14"]
[White "Varga, Zoltan"]
[Black "Levitan, Caleb Levi"]
[Result "1/2-1/2"]
[ECO "B40"]
[WhiteElo "2356"]
[BlackElo "2219"]
[Annotator "RC"]
[PlyCount "81"]
[EventDate "2023.10.22"]
[EventType "team-tourn"]
[EventCountry "SRB"]
[SourceTitle "playchess.com"]
[Source "ChessBase"]
[SourceQuality "1"]
[TimeControl "40/5400+30:1800+30"]

1. e4 {[%emt 1:31:00]} c5 {[%emt 1:31:00]} 2. Nf3 {[%emt 0:00:30]} e6 {[%emt 0:00:30]} 3. g3 {[%emt 0:00:00]} d5 4. exd5 {[%emt 0:01:00]} exd5 {[%emt 0:01:00]} 5. Bg2 {[%emt 0:00:30]} Qe7+ {[%emt 0:00:30]} 6. Kf1 {[%emt 0:00:30]} g6 {[%emt 0:00:30]} 7. d4 {[%emt 0:00:30]} Bg7 {[%emt 0:00:30]} 8. Nc3 {[%emt 0:00:30]} Nf6 {[%emt 0:00:30]} 9. dxc5 {[%emt 0:00:30]} Qxc5 {[%emt 0:00:30]} 10. Qe2+ {[%emt 0:00:30]} Qe7 {[%emt 0:00:30]} 11. Bg5 {[%emt 0:00:30]} Qxe2+ {[%emt 0:00:30]} 12. Kxe2 {[%emt 0:00:30]} Be6 {[%emt 0:00:30]} 13. Rhd1 {[%emt 0:00:00]} Nbd7 14. Nb5 {[%emt 0:00:00]} O-O 15. Be3 {[%emt 0:01:30]} a6 {[%emt 0:01:30]} 16. Nc7 {[%emt 0:00:30]} Rac8 {[%emt 0:00:00]} 17. Nxe6 {[%emt 0:00:00]} fxe6 18. c3 {[%emt 0:01:00]} Rfe8 {[%emt 0:01:30]} 19. Bh3 {[%emt 0:00:30]} h6 {[%emt 0:00:30]} 20. Rac1 {[%emt 0:00:30]} Kf7 {[%emt 0:00:30]} 21. Kf1 {[%emt 0:00:30]} b5 {[%emt 0:00:30]} 22. Rc2 {[%emt 0:00:30]} g5 {[%emt 0:00:30]} 23. Bxg5 {[%emt 0:00:30]} hxg5 {[%emt 0:00:30]} 24. Nxg5+ {[%emt 0:00:30]} Kg6 {[%emt 0:00:30]} 25. Nxe6 {[%emt 0:00:00]} Bh6 26. Nd4 {[%emt 0:01:00]} Ra8 {[%emt 0:01:00]} 27. Bf5+ {[%emt 0:00:30]} Kf7 {[%emt 0:00:30]} 28. f4 {[%emt 0:00:30]} Nb6 {[%emt 0:00:00]} 29. b3 {[%emt 0:00:30]} Nc8 30. Nc6 {[%emt 0:00:30]} Nd6 {[%emt 0:00:00]} 31. Bh3 {[%emt 0:00:30]} Nde4 {[%emt 0:02:00]} 32. Kg2 {[%emt 0:00:30]} Kg8 {[%emt 0:00:30]} 33. Nb4 {[%emt 0:00:30]} Bg7 {[%emt 0:00:00]} 34. Kf3 {[%emt 0:00:00]} Ra7 {[%emt 0:00:00]} 35. c4 bxc4 {[%emt 0:01:30]} 36. bxc4 {[%emt 0:01:30]} dxc4 {[%emt 0:00:00]} 37. Rxc4 {[%emt 0:00:30]} Bf8 {[%emt 0:01:00]} 38. Nc6 {[%emt 0:00:30]} Rc7 {[%emt 0:00:00]} 39. Bf1 {[%emt 0:00:00]} Nd6 40. Rc3 {[%emt 0:01:00]} Nb5 {[%emt 0:00:00]} 41. Bxb5 {[%emt 0:30:30]} 1/2-1/2

[Event "2nd Serbian League-Vojvodina 2023"]
[Site "Novi Sad"]
[Date "2023.11.08"]
[Round "10.15"]
[White "Ljepic, Andrej"]
[Black "Strbac, Mladen"]
[Result "1-0"]
[ECO "C02"]
[WhiteElo "2236"]
[BlackElo "2246"]
[Annotator "RC"]
[PlyCount "55"]
[EventDate "2023.10.22"]
[EventType "team-tourn"]
[EventCountry "SRB"]
[SourceTitle "playchess.com"]
[Source "ChessBase"]
[SourceQuality "1"]
[TimeControl "40/5400+30:1800+30"]

1. e4 {[%emt 0:00:13]} e6 {[%emt 0:00:05]} 2. d4 {[%emt 0:00:09]} d5 {[%emt 0:00:06]} 3. e5 {[%emt 0:01:04]} c5 {[%emt 0:00:16]} 4. c3 {[%emt 0:00:05]} Nc6 {[%emt 0:00:55]} 5. Nf3 {[%emt 0:00:07]} Bd7 {[%emt 0:02:57]} 6. a3 {[%emt 0:00:06]} Nge7 {[%emt 0:02:24]} 7. b4 {[%emt 0:00:28]} cxd4 {[%emt 0:01:10]} 8. cxd4 {[%emt 0:00:08]} Nf5 {[%emt 0:01:44]} 9. Be3 {[%emt 0:00:27]} b5 {[%emt 0:03:38]} 10. Nbd2 {[%emt 0:06:09]} a5 {[%emt 0:05:15]} 11. Bxb5 {[%emt 0:03:02]} axb4 {[%emt 0:12:00]} 12. a4 {[%emt 0:04:43]} Be7 {[%emt 0:12:11]} 13. O-O {[%emt 0:00:45]} O-O {[%emt 0:06:17]} 14. Nb3 {[%emt 0:02:45]} Nxe3 {[%emt 0:12:26]} 15. fxe3 {[%emt 0:00:16]} Nb8 {[%emt 0:00:02]} 16. Qd3 {[%emt 0:05:27]} Bxb5 {[%emt 0:11:55]} 17. Qxb5 {[%emt 0:00:41]} Na6 {[%emt 0:01:07]} 18. Rfc1 {[%emt 0:02:38]} Ra7 {[%emt 0:03:01]} 19. Rc6 {[%emt 0:06:08]} Qa8 {[%emt 0:01:04]} 20. Rac1 {[%emt 0:02:18]} g6 {[%emt 0:04:18]} 21. a5 {[%emt 0:01:30]} Bd8 {[%emt 0:08:46]} 22. h3 {[%emt 0:03:49]} Nc7 {[%emt 0:02:41]} 23. Qxb4 {[%emt 0:01:27]} Rb7 {[%emt 0:00:56]} 24. Qa4 {[%emt 0:01:36]} Qb8 {[%emt 0:00:57]} 25. Nc5 {[%emt 0:01:08]} Rb4 {[%emt 0:00:57]} 26. Qa3 {[%emt 0:01:32]} Re8 {[%emt 0:00:28]} 27. Nd7 {[%emt 0:00:29]} Rb3 {[%emt 0:02:10]} 28. Qc5 {[%emt 0:01:40]} 1-0

[Event "2nd Serbian League-Vojvodina 2023"]
[Site "Novi Sad"]
[Date "2023.11.08"]
[Round "10.16"]
[White "Milanovic, Marko"]
[Black "Dimitrijevic, Nenad"]
[Result "1/2-1/2"]
[ECO "B11"]
[WhiteElo "2248"]
[BlackElo "2196"]
[Annotator "RC"]
[PlyCount "33"]
[EventDate "2023.10.22"]
[EventType "team-tourn"]
[EventCountry "SRB"]
[SourceTitle "playchess.com"]
[Source "ChessBase"]
[SourceQuality "1"]
[TimeControl "40/5400+30:1800+30"]

1. e4 {[%emt 1:31:00]} c6 {[%emt 1:31:00]} 2. Nc3 {[%emt 0:00:30]} d5 {[%emt 0:00:30]} 3. Nf3 {[%emt 0:00:30]} Bg4 {[%emt 0:00:30]} 4. h3 {[%emt 0:00:30]} Bxf3 {[%emt 0:00:30]} 5. Qxf3 {[%emt 0:00:00]} e6 {[%emt 0:00:30]} 6. d3 {[%emt 0:01:00]} Nd7 {[%emt 0:00:30]} 7. Bd2 {[%emt 0:00:30]} d4 {[%emt 0:00:30]} 8. Ne2 {[%emt 0:00:30]} Qb6 {[%emt 0:00:30]} 9. O-O-O {[%emt 0:00:30]} Bb4 {[%emt 0:00:30]} 10. Qg3 {[%emt 0:00:30]} Bxd2+ {[%emt 0:00:30]} 11. Rxd2 {[%emt 0:00:30]} g6 {[%emt 0:00:30]} 12. f4 {[%emt 0:00:30]} Ne7 {[%emt 0:00:30]} 13. Qf3 {[%emt 0:00:30]} O-O-O {[%emt 0:00:30]} 14. Rd1 {[%emt 0:00:30]} Nc5 {[%emt 0:00:30]} 15. Qf2 {[%emt 0:00:30]} Na4 16. b3 {[%emt 0:00:30]} Nc5 {[%emt 0:01:00]} 17. g4 {[%emt 0:00:30]} 1/2-1/2

[Event "2nd Serbian League-Vojvodina 2023"]
[Site "Novi Sad"]
[Date "2023.11.08"]
[Round "10.17"]
[White "Leskovac, Nikola"]
[Black "Levnajic, Pavle"]
[Result "1-0"]
[ECO "B07"]
[WhiteElo "1927"]
[BlackElo "2160"]
[Annotator "RC"]
[PlyCount "75"]
[EventDate "2023.10.22"]
[EventType "team-tourn"]
[EventCountry "SRB"]
[SourceTitle "playchess.com"]
[Source "ChessBase"]
[SourceQuality "1"]
[TimeControl "40/5400+30:1800+30"]

1. e4 {[%emt 1:31:00]} d6 {[%emt 1:31:00]} 2. d4 {[%emt 0:00:30]} Nf6 {[%emt 0:00:30]} 3. Nc3 {[%emt 0:00:30]} e6 {[%emt 0:00:30]} 4. Be3 {[%emt 0:00:30]} a6 {[%emt 0:00:30]} 5. f3 {[%emt 0:00:30]} b5 {[%emt 0:00:30]} 6. a3 {[%emt 0:00:30]} Bb7 {[%emt 0:00:30]} 7. Qd2 {[%emt 0:00:30]} Be7 {[%emt 0:00:30]} 8. Nge2 {[%emt 0:00:30]} d5 {[%emt 0:00:30]} 9. e5 {[%emt 0:00:30]} Nfd7 {[%emt 0:00:30]} 10. f4 {[%emt 0:00:30]} c5 {[%emt 0:00:30]} 11. g3 {[%emt 0:00:30]} Nc6 {[%emt 0:00:30]} 12. Bg2 {[%emt 0:00:30]} Rc8 {[%emt 0:00:30]} 13. O-O {[%emt 0:00:30]} g6 {[%emt 0:00:30]} 14. h3 {[%emt 0:00:30]} h5 {[%emt 0:00:30]} 15. Rfd1 {[%emt 0:00:30]} Nb6 {[%emt 0:00:30]} 16. dxc5 {[%emt 0:00:30]} Nc4 {[%emt 0:00:30]} 17. Qc1 b4 {[%emt 0:00:30]} 18. Na4 {[%emt 0:01:00]} bxa3 {[%emt 0:00:30]} 19. b3 {[%emt 0:00:30]} Nxe3 {[%emt 0:00:30]} 20. Qxe3 {[%emt 0:00:30]} Nb4 {[%emt 0:00:30]} 21. Nd4 {[%emt 0:00:30]} a5 {[%emt 0:00:30]} 22. Kh2 {[%emt 0:00:30]} Na6 {[%emt 0:00:30]} 23. c6 {[%emt 0:00:30]} Bxc6 {[%emt 0:00:30]} 24. Nxc6 {[%emt 0:00:30]} Rxc6 {[%emt 0:00:30]} 25. c4 {[%emt 0:00:30]} Nb4 {[%emt 0:00:30]} 26. Qd2 {[%emt 0:00:30]} O-O {[%emt 0:00:30]} 27. Nc3 {[%emt 0:00:30]} Qc7 {[%emt 0:00:30]} 28. Nb5 {[%emt 0:00:30]} Qb6 {[%emt 0:00:30]} 29. Nxa3 {[%emt 0:00:30]} Rd8 {[%emt 0:00:30]} 30. Qe2 {[%emt 0:00:30]} Rcc8 {[%emt 0:00:30]} 31. cxd5 {[%emt 0:00:30]} Nxd5 {[%emt 0:00:30]} 32. Nc4 {[%emt 0:00:30]} Qxb3 {[%emt 0:00:30]} 33. Nxa5 {[%emt 0:00:30]} Rc2 {[%emt 0:00:30]} 34. Nxb3 {[%emt 0:00:30]} Rxe2 {[%emt 0:00:30]} 35. Nd4 {[%emt 0:00:30]} Rb2 {[%emt 0:00:30]} 36. Nc6 {[%emt 0:00:30]} Rc8 {[%emt 0:00:30]} 37. Rxd5 {[%emt 0:00:30]} exd5 {[%emt 0:00:30]} 38. Nxe7+ {[%emt 0:00:30]} 1-0

[Event "2nd Serbian League-Vojvodina 2023"]
[Site "Novi Sad"]
[Date "2023.11.08"]
[Round "10.18"]
[White "Joksimovic, Dragoljub"]
[Black "Girgis, Lazar"]
[Result "0-1"]
[ECO "D77"]
[WhiteElo "2123"]
[BlackElo "1892"]
[Annotator "RC"]
[PlyCount "80"]
[EventDate "2023.10.22"]
[EventType "team-tourn"]
[EventCountry "SRB"]
[SourceTitle "playchess.com"]
[Source "ChessBase"]
[SourceQuality "1"]
[TimeControl "40/5400+30:1800+30"]

1. Nf3 {[%emt 1:31:00]} Nf6 {[%emt 1:31:00]} 2. g3 {[%emt 0:00:30]} d5 {[%emt 0:00:30]} 3. d4 {[%emt 0:00:30]} g6 {[%emt 0:00:30]} 4. Bg2 {[%emt 0:00:30]} Bg7 {[%emt 0:00:30]} 5. O-O {[%emt 0:00:30]} O-O {[%emt 0:00:30]} 6. c4 {[%emt 0:00:30]} Nc6 {[%emt 0:00:30]} 7. Nc3 {[%emt 0:00:30]} dxc4 {[%emt 0:00:30]} 8. d5 {[%emt 0:00:30]} Na5 {[%emt 0:00:30]} 9. e4 {[%emt 0:00:30]} c6 {[%emt 0:00:30]} 10. Qe2 {[%emt 0:00:30]} cxd5 {[%emt 0:00:30]} 11. Rd1 {[%emt 0:00:30]} e6 {[%emt 0:00:30]} 12. Bg5 {[%emt 0:00:30]} Qe8 {[%emt 0:00:30]} 13. Nd4 {[%emt 0:00:30]} Nxe4 {[%emt 0:00:30]} 14. Nxe4 {[%emt 0:00:30]} dxe4 {[%emt 0:00:30]} 15. Bxe4 {[%emt 0:00:30]} Bd7 {[%emt 0:00:30]} 16. Qd2 {[%emt 0:00:30]} Bc6 {[%emt 0:00:30]} 17. Bxc6 {[%emt 0:00:30]} Nxc6 {[%emt 0:00:30]} 18. Nb5 {[%emt 0:00:30]} Ne5 {[%emt 0:00:30]} 19. Nd4 {[%emt 0:00:30]} Nd3 {[%emt 0:00:30]} 20. Qe3 {[%emt 0:00:30]} Qd7 {[%emt 0:00:30]} 21. Nf3 {[%emt 0:00:30]} Qb5 {[%emt 0:00:30]} 22. Bh6 {[%emt 0:00:30]} Qc5 {[%emt 0:00:30]} 23. Qxc5 {[%emt 0:00:30]} Nxc5 {[%emt 0:00:30]} 24. Bf4 {[%emt 0:00:30]} Bxb2 {[%emt 0:00:30]} 25. Rab1 {[%emt 0:00:30]} c3 {[%emt 0:00:30]} 26. Ne1 {[%emt 0:00:30]} Rfd8 {[%emt 0:00:30]} 27. Nc2 {[%emt 0:00:30]} f6 {[%emt 0:00:30]} 28. Be3 {[%emt 0:00:30]} Na4 {[%emt 0:00:30]} 29. Kf1 {[%emt 0:00:30]} a5 {[%emt 0:00:30]} 30. Ke2 {[%emt 0:00:30]} Kf7 {[%emt 0:00:30]} 31. Rd3 {[%emt 0:00:30]} Rxd3 {[%emt 0:00:30]} 32. Kxd3 {[%emt 0:00:30]} Rc8 {[%emt 0:00:30]} 33. f4 {[%emt 0:00:30]} b5 {[%emt 0:00:30]} 34. Nd4 {[%emt 0:00:30]} Nc5+ {[%emt 0:00:30]} 35. Kc2 {[%emt 0:00:30]} b4 {[%emt 0:00:30]} 36. Nb5 {[%emt 0:00:30]} Ke7 {[%emt 0:00:30]} 37. Re1 {[%emt 0:00:30]} a4 {[%emt 0:00:30]} 38. f5 {[%emt 0:00:30]} b3+ {[%emt 0:00:30]} 39. axb3 {[%emt 0:00:30]} axb3+ {[%emt 0:00:30]} 40. Kb1 {[%emt 0:00:30]} Nd3 {[%emt 0:00:30]} 0-1

[Event "2nd Serbian League-Vojvodina 2023"]
[Site "Novi Sad"]
[Date "2023.11.08"]
[Round "10.19"]
[White "Georgiev, Krum"]
[Black "Mezentsev, Ivan"]
[Result "1/2-1/2"]
[ECO "B30"]
[WhiteElo "2294"]
[BlackElo "2360"]
[Annotator "RC"]
[PlyCount "139"]
[EventDate "2023.10.22"]
[EventType "team-tourn"]
[EventCountry "SRB"]
[SourceTitle "playchess.com"]
[Source "ChessBase"]
[SourceQuality "1"]
[TimeControl "40/5400+30:1800+30"]

1. e4 {[%emt 0:00:04]} c5 {[%emt 0:02:03]} 2. Nf3 {[%emt 0:00:04]} Nf6 {[%emt 0:01:39]} 3. d3 {[%emt 0:00:56]} Nc6 {[%emt 0:01:24]} 4. Nbd2 {[%emt 0:00:23]} d5 {[%emt 0:02:55]} 5. c3 {[%emt 0:00:51]} g6 {[%emt 0:03:38]} 6. Be2 {[%emt 0:02:00]} Bg7 {[%emt 0:00:10]} 7. O-O {[%emt 0:00:16]} O-O {[%emt 0:00:52]} 8. Re1 {[%emt 0:00:29]} e5 {[%emt 0:06:35]} 9. a3 {[%emt 0:01:36]} d4 {[%emt 0:09:07]} 10. cxd4 {[%emt 0:09:12]} cxd4 {[%emt 0:00:09]} 11. Nc4 {[%emt 0:00:38]} Re8 {[%emt 0:06:27]} 12. a4 {[%emt 0:14:20]} Bf8 {[%emt 0:09:54]} 13. Bd2 {[%emt 0:00:14]} a5 {[%emt 0:02:43]} 14. Qb3 {[%emt 0:11:54]} Nd7 {[%emt 0:01:09]} 15. Rec1 {[%emt 0:06:33]} Nc5 {[%emt 0:02:00]} 16. Qb5 {[%emt 0:00:14]} Ra6 {[%emt 0:11:28]} 17. Ncxe5 {[%emt 0:09:52]} Nxe5 {[%emt 0:05:16]} 18. Rxc5 {[%emt 0:00:20]} Bxc5 {[%emt 0:06:01]} 19. Qxc5 {[%emt 0:00:06]} Nxf3+ {[%emt 0:02:53]} 20. Bxf3 {[%emt 0:00:15]} Qb6 {[%emt 0:09:02]} 21. Qb5 {[%emt 0:10:56]} Qxb5 {[%emt 0:01:24]} 22. axb5 {[%emt 0:00:06]} Rb6 {[%emt 0:00:14]} 23. Bd1 {[%emt 0:12:42]} Bd7 {[%emt 0:01:25]} 24. Ba4 {[%emt 0:00:04]} Ra8 {[%emt 0:01:55]} 25. Ra3 {[%emt 0:00:04]} Rc8 {[%emt 0:05:41]} 26. h4 {[%emt 0:02:00]} Re6 {[%emt 0:02:40]} 27. Bxa5 {[%emt 0:00:54]} b6 {[%emt 0:04:17]} 28. Bd2 {[%emt 0:00:31]} Re5 {[%emt 0:00:22]} 29. Bf4 {[%emt 0:01:16]} Rh5 {[%emt 0:00:55]} 30. Bg5 {[%emt 0:05:10]} h6 {[%emt 0:00:02]} 31. Bf6 {[%emt 0:01:10]} Bxb5 {[%emt 0:00:55]} 32. Bd1 {[%emt 0:01:29]} Rhc5 {[%emt 0:00:11]} 33. Bg4 {[%emt 0:00:14]} Rc1+ {[%emt 0:00:58]} 34. Kh2 {[%emt 0:00:16]} Rb8 {[%emt 0:00:15]} 35. Bxd4 {[%emt 0:01:37]} h5 {[%emt 0:00:02]} 36. Bf3 {[%emt 0:00:32]} Bd7 {[%emt 0:01:12]} 37. Ra7 {[%emt 0:01:15]} Be6 {[%emt 0:00:22]} 38. Be5 {[%emt 0:00:20]} Rd8 {[%emt 0:00:20]} 39. d4 {[%emt 0:00:26]} Bc4 {[%emt 0:00:26]} 40. Bc7 {[%emt 0:03:35]} Re8 {[%emt 0:00:28]} 41. Bxb6 {[%emt 0:32:24]} Rc2 {[%emt 0:30:08]} 42. d5 {[%emt 0:02:31]} Rxb2 {[%emt 0:00:29]} 43. Bd4 {[%emt 0:00:15]} Rbb8 {[%emt 0:01:04]} 44. Bf6 {[%emt 0:00:22]} Ra8 {[%emt 0:00:20]} 45. Rd7 {[%emt 0:00:13]} Bb5 {[%emt 0:00:25]} 46. Rb7 {[%emt 0:01:24]} Rab8 {[%emt 0:00:47]} 47. Rxb8 {[%emt 0:00:33]} Rxb8 {[%emt 0:00:01]} 48. g4 {[%emt 0:00:17]} hxg4 {[%emt 0:00:22]} 49. Bxg4 {[%emt 0:00:02]} Rb7 {[%emt 0:00:11]} 50. Kg3 {[%emt 0:00:36]} Bd7 {[%emt 0:00:13]} 51. f3 {[%emt 0:00:44]} Kf8 {[%emt 0:00:20]} 52. Kf4 {[%emt 0:00:13]} Ke8 {[%emt 0:00:17]} 53. h5 {[%emt 0:00:13]} gxh5 {[%emt 0:01:03]} 54. Bxh5 {[%emt 0:00:03]} Rb1 {[%emt 0:00:21]} 55. Bg4 {[%emt 0:02:04]} Rg1 {[%emt 0:00:46]} 56. Bxd7+ {[%emt 0:00:11]} Kxd7 {[%emt 0:00:00]} 57. Kf5 {[%emt 0:00:26]} Rf1 {[%emt 0:00:15]} 58. f4 {[%emt 0:00:08]} Rd1 {[%emt 0:00:15]} 59. Bg5 {[%emt 0:02:27]} Rd4 {[%emt 0:00:53]} 60. Ke5 {[%emt 0:00:00]} Ra4 {[%emt 0:00:11]} 61. Bf6 {[%emt 0:00:00]} Ra6 {[%emt 0:00:32]} 62. Bg5 {[%emt 0:00:39]} Ra4 {[%emt 0:00:08]} 63. Bh6 {[%emt 0:00:17]} Ra6 {[%emt 0:00:37]} 64. Bf8 {[%emt 0:00:17]} Ra8 {[%emt 0:01:30]} 65. Bc5 {[%emt 0:00:49]} Ra5 {[%emt 0:00:10]} 66. Bf8 {[%emt 0:00:39]} Ra8 {[%emt 0:00:05]} 67. Bc5 {[%emt 0:00:32]} Ra5 {[%emt 0:00:34]} 68. Bf8 {[%emt 0:00:27]} Ra8 {[%emt 0:01:33]} 69. Bc5 {[%emt 0:00:05]} Ra5 {[%emt 0:00:47]} 70. Bf8 {[%emt 0:00:27]} 1/2-1/2